Cogmind - Beta 10.2 @@@ ROGUE MODE // 2020.11.01 @ 11:50:01 Player: slanderous_mambo Result: Smashed by cave-in Performance ------------- Evolutions (0) 0 Regions Visited (2) 400 Robots Destroyed (13) 65 Value Destroyed (266) 266 Prototype IDs (0) 0 Alien Tech Used (0) 0 Bonus (0) 0 TOTAL SCORE: 731 Bonus ------- None Cogmind --------- Core Integrity 0/250 Matter 55/300 Energy 100/100 System Corruption 6% Temperature Cool (1) Movement Walking (150) Ox1 Location -10/Mines Parts ------- > --- POWER (1) -------- (None) > --- PROPULSION (2) --- Aluminum Leg > --- UTILITY (2) ------ Large Storage Unit Terrain Scanner > --- WEAPON (2) ------- EM Pulse Gun > --- INVENTORY (10) --- Improved Heat Sink High-capacity Battery (400) High-capacity Matter Pod (0) Light Assault Rifle Light Assault Rifle Mining Claw Peak State ------------ > --- POWER ------------ Light Nuclear Core > --- PROPULSION ------- Aluminum Leg Aluminum Leg > --- UTILITY ---------- Large Storage Unit Terrain Scanner > --- WEAPON ----------- Grenade Launcher Grenade Launcher > --- INVENTORY -------- Ion Engine Aluminum Leg Improved Heat Sink High-capacity Battery High-capacity Matter Pod EM Pulse Gun Light Assault Rifle Light Assault Rifle Light Assault Rifle Mining Claw [Rating: 10] Favorites ----------- Power Ion Engine Engine Ion Engine Power Core Light Nuclear Core Propulsion Aluminum Leg Leg Aluminum Leg Utility Terrain Scanner Device Terrain Scanner Storage Small Storage Unit Weapon Light Assault Rifle Energy Gun Small Laser Ballistic Gun Light Assault Rifle Launcher Grenade Launcher Build | -11 -10 -10 ------- Run | Scr Mat Min Slots Evolved . | . . . Power . | . . . Propulsion . | . . . Utility . | . . . Weapon . | . . . Parts Attached 34 | 7 20 7 Power 7 | 1 4 2 Engine 6 | 1 4 1 Core 1 | . . 1 Reactor . | . . . Propulsion 7 | 2 4 1 Treads . | . . . Leg 7 | 2 4 1 Wheel . | . . . Hover . | . . . Flight . | . . . Utility 4 | 1 3 . Device 2 | . 2 . Storage 2 | 1 1 . Processor . | . . . Hackware . | . . . Protection . | . . . Artifact . | . . . Weapon 16 | 3 9 4 Energy Gun 4 | 1 2 1 Energy Cannon . | . . . Ballistic Gun 10 | 2 7 1 Ballistic Cannon . | . . . Launcher 2 | . . 2 Special Weapon . | . . . Impact Weapon . | . . . Slashing Weapon . | . . . Piercing Weapon . | . . . Special Melee Weapon . | . . . Unidentified Prototypes . | . . . Parts Lost 7 | . . 7 Power 2 | . . 2 Propulsion 2 | . . 2 Utility . | . . . Weapon 3 | . . 3 Highest Loss Streak 5 | . . 5 Average Slot Usage (%) 96 | . 97 92 Engine 11 | . 14 5 Core 1 | . . 7 Leg 26 | . 27 22 Device 12 | . 11 14 Storage 14 | . 14 14 Energy Gun 2 | . 1 3 Ballistic Gun 21 | . 26 6 Launcher 3 | . . 17 Naked Turns . | . . . Heaviest Build 28 | 11 24 28 Greatest Support 20 | 20 20 20 Greatest Overweight (x) 2 | 1 1 2 Average Overweight (x) . | . . 1 Largest Inventory Capacity 10 | 6 10 10 Average Capacity 7 | 5 7 10 Most Carried 10 | 3 10 10 Average Carried 6 | 1 5 9 Final Capacity 10 | 6 10 10 Final Carried 10 | 2 10 6 Class Distribution -------------------- 61% | Mutant 38% | Scavenger-Mutant Dominant Class ---------------- Scavenger-Mutant | -10/Materials Mutant | -10/Mines Resources | -11 -10 -10 ----------- Run | Scr Mat Min Matter Collected 476 | 221 235 20 Remotely . | . . . Salvage Created 257 | . 220 37 Parts 26 | . 24 2 Haulers Intercepted . | . . . Recyclers Shooed . | . . . Parts Field Recycled . | . . . Retrieved Matter . | . . . Parts Self-Destructed . | . . . Prevented . | . . . Kills | -11 -10 -10 ------- Run | Scr Mat Min Combat Hostiles Destroyed 11 | . 8 3 Guns 9 | . 8 1 AOE 2 | . . 2 Classes Destroyed 3 | . 3 . Watcher 2 | . 2 . Swarmer 5 | . 5 . Grunt 5 | . 3 2 Best Kill Streak 3 | . 3 2 Combat Bots Only 2 | . 2 2 Max Kills in Single Turn 2 | . 1 2 Gunslinging . | . . . Exploded 2 | . . 2 Melee . | . . . Uniques/NPCs Destroyed 1 | . . 1 YI-UF0 (-10/Mines) Combat | -11 -10 -10 -------- Run | Scr Mat Min Damage Taken 1149 | . 338 811 Core 250 | . 32 218 Absorbed by Shields . | . . . Core Remaining (%) 100 | 100 . . Volleys Fired 57 | . 44 13 Largest 2 | . 2 2 Hottest 60 | . 60 60 Shots Fired 112 | . 88 24 Gun 98 | . 88 10 Cannon . | . . . Launcher 14 | . . 14 Special . | . . . Kinetic 78 | . 74 4 Thermal 14 | . 14 . Explosive 14 | . . 14 Electromagnetic 6 | . . 6 Robot Hit Streak 11 | . 11 6 Robot Miss Streak 4 | . 4 2 Penetration Max . | . . . Secondary Targets 3 | . 3 . Max Gunslinging Chain 1 | . 1 . Shots Hit Robots 68 | . 53 15 Core Hits 34 | . 19 15 Critical Hits . | . . . Critical Kills . | . . . Critical Parts Destroyed . | . . . Melee Attacks . | . . . Impact . | . . . Slashing . | . . . Piercing . | . . . Sneak Attacks . | . . . Combat Hostiles . | . . . Follow-up Attacks . | . . . Damage Inflicted 638 | . 385 253 Guns 441 | . 383 58 Cannons . | . . . Explosions 195 | . . 195 Melee . | . . . Ramming 2 | . 2 . Kinetic 328 | . 304 24 Thermal 79 | . 79 . Explosive 195 | . . 195 Electromagnetic 34 | . . 34 Impact . | . . . Slashing . | . . . Piercing . | . . . Highest Corruption 1 | . 1 1 Average Corruption 1 | . 1 1 Corruption Purged . | . . . Effects 1 | . 1 . Data Loss (minor) 1 | . 1 . Overload Shots . | . . . Overflow Damage . | . . . Projectiles . | . . . Explosions . | . . . Melee . | . . . Knockbacks . | . . . Impact . | . . . Kinetic . | . . . Secondary . | . . . Self-Inflicted Damage 25 | . 1 24 Shots 1 | . . 1 Rammed 2 | . 2 . Targets Rammed 3 | . 3 . Kicked 1 | . 1 . Crushed . | . . . Highest Temperature 80 | . 80 46 Average Temperature 25 | . 32 17 Received Heat Transfer 84 | . 54 30 Siege Activations . | . . . Robots Corrupted . | . . . Combat Hostiles . | . . . Parts Fried . | . . . Impact Corruptions . | . . . Robots Melted . | . . . Combat Hostiles . | . . . Parts Melted . | . . . Heat Transferred 175 | . 175 . Parts Sabotaged . | . . . Parts Stolen . | . . . Parts Stripped . | . . . Power Chain Reactions . | . . . Missiles Intercepted . | . . . Alert | -11 -10 -10 ------- Run | Scr Mat Min Peak Influence 150 | . 150 108 Initial 58 | . . 58 Average 68 | . 69 84 Maximum Alert Level . | . . . Low Security (%) 100 | 100 100 100 Level 1 . | . . . Level 2 . | . . . Level 3 . | . . . Level 4 . | . . . Level 5 . | . . . High Security . | . . . Max Security . | . . . Squads Dispatched 3 | . 3 . Investigation 2 | . 2 . Extermination . | . . . Reinforcement 1 | . 1 . Assault . | . . . Garrison . | . . . Intercept . | . . . Construction Impeded . | . . . Haulers Reinforced . | . . . Stealth | -11 -10 -10 --------- Run | Scr Mat Min Distress Signals 1 | . 1 . Communications Jammed . | . . . Distress Signals . | . . . Times Spotted 20 | . 17 3 Peak Tracking Total 4 | . 4 2 Tactical Retreats 1 | . 1 . Traps | -11 -10 -10 ------- Run | Scr Mat Min Traps Triggered 3 | . 3 . Indirectly . | . . . Trap Hack Attempts . | . . . Triggered . | . . . Disarmed . | . . . Reprogrammed . | . . . Reused . | . . . Traps Extracted . | . . . Installed . | . . . Triggered . | . . . Machines | -11 -10 -10 ---------- Run | Scr Mat Min Machines Disabled . | . . . Max in Single Turn . | . . . Machines Sabotaged . | . . . Garrisons Compromised . | . . . Overloaded Fab Kills . | . . . Fab Network Shutdowns . | . . . Hacking | -11 -10 -10 --------- Run | Scr Mat Min Machines Accessed 5 | . 5 . Terminals 3 | . 3 . Fabricators . | . . . Repair Stations 1 | . 1 . Recycling Units 1 | . 1 . Scanalyzers . | . . . Garrison Access . | . . . Total Hacks 9 | . 9 . Successful 4 | . 4 . Failed 5 | . 5 . Catastrophic . | . . . Database Lockouts . | . . . Manual . | . . . Terminals 4 | . 4 . Fabricators . | . . . Repair Stations 1 | . 1 . Recycling Units 4 | . 4 . Scanalyzers . | . . . Garrison Access . | . . . Terminal Hacks 1 | . 1 . Record 1 | . 1 . Fabricator Hacks . | . . . Repair Station Hacks . | . . . Recycling Unit Hacks 3 | . 3 . Recycle Component 3 | . 3 . Scanalyzer . | . . . Garrison Access Hacks . | . . . Unauthorized Hacks . | . . . Terminals . | . . . Fabricators . | . . . Repair Stations . | . . . Recycling Units . | . . . Scanalyzers . | . . . Garrison Access . | . . . Data Cores Recovered . | . . . Used . | . . . Hacking Detections 3 | . 3 . Full Trace Events 2 | . 2 . Feedback Events 1 | . 1 . Corruption 1 | . 1 . Feedback Blocked . | . . . Robot Schematics Acquired . | . . . Robots Built . | . . . Matter . | . . . Time . | . . . Total Robot Build Rating . | . . . Part Schematics Acquired . | . . . Parts Built . | . . . Matter . | . . . Time . | . . . Total Part Build Rating . | . . . Parts Repaired . | . . . Time . | . . . Parts Recycled 3 | . 3 . Recycled Matter . | . . . Retrieved Matter . | . . . Retrieved Components . | . . . Parts Scanalyzed . | . . . Part Schematics Acquired . | . . . Parts Damaged . | . . . Bothacking | -11 -10 -10 ------------ Run | Scr Mat Min Used RIF Installer . | . . . Robots Hacked . | . . . Non-combat . | . . . Combat . | . . . Robot Hacks Applied . | . . . Relay Couplers Released . | . . . Robots Rewired . | . . . Allies Hacked . | . . . Hacks Repelled . | . . . Allies | -11 -10 -10 -------- Run | Scr Mat Min Total Allies . | . . . Largest Group . | . . . Highest-Rated Group . | . . . Highest-Rated Ally . | . . . Total Orders . | . . . Ally Attacks . | . . . Total Damage . | . . . Kills . | . . . Allies Corrupted . | . . . Allies Melted . | . . . Intel | -11 -10 -10 ------- Run | Scr Mat Min Robot Analysis Total . | . . . Derelict Logs Recovered . | . . . Drone Launches . | . . . Drone Recoveries . | . . . Exploration | -11 -10 -10 ------------- Run | Scr Mat Min Turns Passed 1018 | 64 734 220 Spaces Moved 582 | 44 426 112 Core 8 | 8 . . Treads . | . . . Legs 574 | 36 426 112 Wheels . | . . . Hover . | . . . Flight . | . . . Fastest Speed 50 | 50 120 150 Average Speed 132 | 111 128 153 Slowest Speed 180 | 150 150 180 Overloaded Moves . | . . . Propulsion Burnouts . | . . . Robots Hopped . | . . . Cave-ins Triggered 1 | . . 1 Exploration Rate (%) 36 | 3 73 32 Regions Visited 2 Branch Regions 1 Pre-discovered Areas . | . . . Known Exits Taken . | . . . Unknown Exits Taken 2 | 1 1 . Scrap Searched . | . . . Spaces Dug . | . . . Terrain Destroyed 46 | . . 46 Melee . | . . . Projectile . | . . . AOE 46 | . . 46 Terrain Rammed . | . . . Walls Destroyed . | . . . Machines Disabled . | . . . Actions | -11 -10 -10 --------- Run | Scr Mat Min Total 735 | 58 540 137 Wait . | . . . Move 579 | 43 425 111 Hop . | . . . Pick Up 44 | 8 33 3 Fast Attach . | . . . Attach 19 | 6 9 4 Detach . | . . . Swap 15 | 1 11 3 Drop 18 | . 15 3 Fire 57 | . 44 13 Melee . | . . . Ram . | . . . Kick 3 | . 3 . Crush . | . . . Escape Stasis . | . . . Rewire . | . . . Trap . | . . . Miscellaneous . | . . . Route ------- -11/Scrapyard -10/Materials (discovered 4 exits: [*Mat x2] / [*Min x2]) -10/Mines (discovered 2 exits: [*Mat] / [*Exi]) History --------- Turn | Location | Event 3 | -11/Scrapyard | Discovered new exit (range 15) 65 | -11/Scrapyard | Entered Materials 160 | -10/Materials | Discovered new exit (range 13) 278 | -10/Materials | Discovered new exit (range 16) 300 | -10/Materials | Build established: Mutant 361 | -10/Materials | Discovered new exit (range 15) 555 | -10/Materials | Discovered new exit (range 14) 745 | -10/Materials | Build established: Scavenger-Mutant 799 | -10/Materials | Entered Mines 817 | -10/Mines | YI-UF0 nonchalantly dropped a Grenade Launcher on the ground 944 | -10/Mines | Discovered new exit (range 13) 946 | -10/Mines | Discovered new exit (range 7) 963 | -10/Mines | Core integrity fell below 50% 975 | -10/Mines | Destroyed YI-UF0 1001 | -10/Mines | Deemed a non-threat by the Exiles lab entrance 1006 | -10/Mines | Lost 5 parts (1p2n2w) 1019 | -10/Mines | Crushed by falling debris 1019 | -10/Mines | Smashed by cave-in Last Messages --------------- The unstable cave ceiling collapses. Aluminum Leg destroyed. The unstable cave ceiling collapses. Aluminum Leg destroyed. The unstable cave ceiling collapses. Grenade Launcher destroyed. The unstable cave ceiling collapses. Destroyed Shock Absorption System. The unstable cave ceiling collapses. Lgt. Nuclear Core destroyed. YI-UF0 destroyed. The unstable cave ceiling collapses. "No threat detected, you may enter." The unstable cave ceiling collapses. Crushed by falling debris. [Achievement: Unlikely Earthworm] Lgt. Assault Rifle destroyed. System corrupted by crushing effect (+1). Ion Engine destroyed. System corrupted by crushing effect (+4). Map ----- +----------------------------------------------------+ | | | | | | | | | ?????????????????????????? | | ?#?????????????#?????????? | | ???????#???????????????#?? | | ?????????#????????#??????? | | ???????????#??????????#### | | ???#######????????????# | | ???# ##???????????## | | ???# """ #?#???#?###### | | ???# """ ##??????## | | ???# """ ######### | | #?## #### | | ???# ### # | | ???# # ### ##### | | ?### # ## ### | | ?# ## # ### ## | | # # ## ### #### | | # # ## # #?# | | # # ## | | #### # ## | | # ## ### # | | ## ## # # ## | | #@ ### # ## # | | ## < ### ## | | ?# ## ## ## | | ?###### ## ## | | ????#?### ### < #### | | ??#?#???###?## #??## | | ?????????????# #???# | | ?????????????# #???# | | ???????#?????# #?? | | ??#?#????????######### | | ???????????????????? | | ?????#?##????????? # | | ??????#??????????? #? | | ????????????????? ?? | | ?????????????????? ?? | | ?????????????????? ??? | | ??#?????????????????# ???? | | ?????????????????????????? | | ?????????????????????????? | | ?????????????????????????? | | ?????????????????????????? | | ?????????????????????????? | | ?????????????????????????? | | ?????????????????????????? | | ?????????????????????????? | +----------------------------------------------------+ Best States ------------- Heat Dissipation 25 Energy Generation 14 Energy Capacity 250 Matter Stores 251 Matter Capacity 300 Sight Range 16 Terrain Scan Range 14 Terrain Scan Density 10 Evasion (%) 40 Item Schematics ----------------- None Robot Schematics ------------------ None Fabricated ------------ Nothing Alien Tech Used ----------------- None Achievements -------------- Unlikely Earthworm Challenges ------------ None Game ------ Seed BurstWardroneScanner Manual? 0 Play Time 00:20:12 Cumulative 2.9 hours Start 2020.11.01 @ 11:30:55 End 2020.11.01 @ 11:50:01 Sessions 1 Manual Loads 0 Difficulty Rogue Special Mode None Game No. 4 Rogue 3 Adventurer 1 Explorer 0 Win Type - Total 0 Types 0/0/0/0/0/0/0/0/0 Lore% 4 Gallery% 8 Achievement% 5 Wizard Run 0 Options --------- ASCII 0 Keyboard 0 Movement Vi Keybinds 1 Fullscreen 2 Font 18/Terminus Map View 76x50 Tactical HUD 0 Map Filters NONE Filters NONE Steam 1 RUN: 89032b7b-6cbd-422f-a581-90babc9c1f11